Cogmind - Beta 16 --- EXPLORER MODE // 2025.12.31 @ 18:31:19 Player: Compilatron Result: Destroyed by QK-40Q(R) with Subdweller Machine Gun Performance ------------- Evolutions (0) 0 Regions Visited (2) 400 Robots Destroyed (16) 80 Value Destroyed (522) 522 Prototype IDs (12) 240 Alien Tech Used (0) 0 Bonus (0) 0 TOTAL SCORE: 1242 Bonus ------- None Cogmind --------- Core Integrity 0/250 Matter 283/300 Energy 260/265 System Corruption 0% Temperature Cool (0) Movement Walking (130) Location -10/Subcaves Parts ------- > --- POWER (1) -------- Improved Ion Engine > --- PROPULSION (2) --- Cargo Legs > --- UTILITY (3+2) ---- Medium Storage Unit Sensor Array > --- WEAPON (2) ------- Subdweller Laser Barrage Gun > --- INVENTORY (10) --- Aluminum Leg Signal Interpreter Targeting Computer Subdweller Beam Cannon Subdweller Machine Gun Multitool Scrap Shield Fragment (50) Scrap Shield Fragment (49) Peak State ------------ > --- POWER ------------ Improved Ion Engine > --- PROPULSION ------- Cargo Legs > --- UTILITY ---------- Medium Storage Unit Sensor Array > --- WEAPON ----------- Subdweller Laser Barrage Gun > --- INVENTORY -------- Aluminum Leg Signal Interpreter Targeting Computer Subdweller Beam Cannon Subdweller Machine Gun Multitool Scrap Shield Fragment Scrap Shield Fragment [Rating: 26] Favorites ----------- Power Subdweller Power Source Engine Subdweller Power Source Power Core Light Nuclear Core Propulsion Light Treads Treads Light Treads Leg Aluminum Leg Wheel Subdweller Monowheel Utility Medium Storage Unit Device Seismic Detector Storage Medium Storage Unit Protection Light Armor Plating Weapon Subdweller Laser Energy Gun Subdweller Laser Energy Cannon Subdweller Beam Cannon Ballistic Gun Subdweller Machine Gun Special Weapon Flamer Build | -11 -10 -10 ------- Run | Yrd Mat Sub Slots Evolved 1 | . 1 . Power . | . . . Propulsion . | . . . Utility 1 | . 1 . Weapon . | . . . Parts Attached 19 | 1 3 15 Power 5 | . . 5 Engine 4 | . . 4 Core 1 | . . 1 Reactor . | . . . Propulsion 4 | . 2 2 Treads 2 | . 2 . Leg 1 | . . 1 Wheel 1 | . . 1 Hover . | . . . Flight . | . . . Utility 3 | . 1 2 Device 2 | . . 2 Storage . | . . . Processor . | . . . Hackware . | . . . Protection 1 | . 1 . Artifact . | . . . Weapon 7 | 1 . 6 Energy Gun 3 | 1 . 2 Energy Cannon 1 | . . 1 Ballistic Gun 2 | . . 2 Ballistic Cannon . | . . . Launcher . | . . . Special Weapon 1 | . . 1 Impact Weapon . | . . . Slashing Weapon . | . . . Piercing Weapon . | . . . Special Melee Weapon . | . . . Unidentified Prototypes . | . . . Parts Lost 6 | . . 6 Power 1 | . . 1 Propulsion 2 | . . 2 Utility 3 | . . 3 Weapon . | . . . Highest Loss Streak 2 | . . 2 To Critical Strikes 1 | . . 1 Average Backups 7 | 7 7 7 Power . | 1 1 . Propulsion 1 | 2 2 1 Utility 3 | 3 3 3 Weapon 1 | 1 1 1 Tool/Special . | . . . Unused Backups 13 | . 4 9 Power 2 | . 1 1 Propulsion 2 | . . 2 Utility 6 | . 2 4 Weapon 2 | . 1 1 Tool/Special 1 | . . 1 Average Slot Usage (%) 93 | . 100 92 Engine 11 | . 12 11 Treads 21 | . 10 22 Leg 1 | . 14 . Device 13 | . 12 13 Storage 12 | . 12 12 Protection 5 | . 12 4 Energy Gun 9 | . 12 8 Energy Cannon 2 | . . 3 Ballistic Gun 9 | . 12 9 Special Weapon 2 | . . 2 Peak Build Rating 26 | 7 8 26 Average Rating 10 | 7 8 11 On Entrance 7 | 7 7 8 Avg Prop Armor Cover (%) 13 | . . 13 Naked Turns . | . . . Heaviest Build 29 | 19 22 29 Greatest Support 40 | 20 40 40 Greatest Overweight (x) 1 | . 1 1 Average Overweight (x) . | . . . Largest Inventory Capacity 10 | 10 10 10 Average Capacity 10 | 10 10 10 Most Carried 10 | 7 9 10 Average Carried 9 | 7 7 9 Final Capacity 10 | 10 10 10 Final Carried 9 | 7 9 8 Class Distribution -------------------- 100% | Hacker-Mutant Dominant Class ---------------- Hacker-Mutant | -10/Materials Hacker-Mutant | -10/Subcaves Resources | -11 -10 -10 ----------- Run | Yrd Mat Sub Matter Collected 438 | 195 25 218 Remotely . | . . . Salvage Created 571 | . . 571 Parts 39 | . . 39 Haulers Intercepted . | . . . Recyclers Shooed . | . . . Parts Field Recycled . | . . . Retrieved Matter . | . . . Parts Self-Destructed . | . . . Prevented . | . . . Parts Restored . | . . . Kills | -11 -10 -10 ------- Run | Yrd Mat Sub Combat Hostiles Destroyed 15 | . . 15 Guns 12 | . . 12 Cannons 3 | . . 3 Classes Destroyed 6 | . . 6 Turret 1 | . . 1 Swarmer 4 | . . 4 Grunt 1 | . . 1 Sentry 1 | . . 1 Artisan 1 | . . 1 Subdweller 9 | . . 9 Best Kill Streak 4 | . . 4 Combat Bots Only 4 | . . 4 Max Kills in Single Turn 1 | . . 1 Gunslinging . | . . . Exploded . | . . . Melee . | . . . Uniques/NPCs Destroyed . | . . . Combat | -11 -10 -10 -------- Run | Yrd Mat Sub Hostile Shots Fired 143 | . . 143 Missed 51 | . . 51 Hits 92 | . . 92 Projectile 92 | . . 92 Critical Strikes 2 | . . 2 Damage Taken 999 | . . 999 Core 257 | . . 257 Absorbed by Shields . | . . . Ignored by Resistances 589 | . . 589 Core Remaining (%) 100 | 100 . . Volleys Fired 124 | . . 124 Largest 2 | . . 2 Hottest 100 | . . 100 Shots Fired 157 | . . 157 Gun 141 | . . 141 Cannon 16 | . . 16 Launcher . | . . . Special . | . . . Kinetic 33 | . . 33 Thermal 124 | . . 124 Explosive . | . . . Electromagnetic . | . . . Robot Hit Streak 21 | . . 21 Robot Miss Streak 2 | . . 2 Penetration Max . | . . . Secondary Targets 1 | . . 1 Max Gunslinging Chain 1 | . . 1 Shots Hit Robots 92 | . . 92 Core Hits 28 | . . 28 Critical Kills . | . . . Critical Parts Destroyed 1 | . . 1 Critical Strikes 3 | . . 3 Burn 1 | . . 1 Destroy 2 | . . 2 Melee Attacks . | . . . Impact . | . . . Slashing . | . . . Piercing . | . . . Sneak Attacks . | . . . Combat Hostiles . | . . . Follow-up Attacks . | . . . Damage Inflicted 1744 | . . 1744 Guns 1444 | . . 1444 Cannons 300 | . . 300 Explosions . | . . . Melee . | . . . Ramming . | . . . Kinetic 284 | . . 284 Thermal 1460 | . . 1460 Explosive . | . . . Electromagnetic . | . . . Impact . | . . . Slashing . | . . . Piercing . | . . . Highest Corruption . | . . . Average Corruption . | . . . Corruption Purged . | . . . Corruption Blocked . | . . . Overload Shots . | . . . Overflow Damage . | . . . Projectiles . | . . . Explosions . | . . . Melee . | . . . Knockbacks . | . . . Impact . | . . . Kinetic . | . . . Secondary . | . . . Self-Inflicted Damage . | . . . Shots . | . . . Rammed . | . . . Targets Rammed . | . . . Kicked . | . . . Crushed . | . . . Highest Temperature 77 | . . 77 Average Temperature 22 | . . 22 Received Heat Transfer 297 | . . 297 Siege Activations . | . . . Martial Activations . | . . . Shielding Activations . | . . . Robots Disrupted . | . . . Combat Hostiles . | . . . Robots Corrupted . | . . . Combat Hostiles . | . . . Parts Fried . | . . . Impact Corruptions . | . . . Robots Melted . | . . . Combat Hostiles . | . . . Parts Melted 5 | . . 5 Heat Transferred 2064 | . . 2064 Parts Sabotaged . | . . . Parts Stolen . | . . . Parts Stripped . | . . . Power Chain Reactions . | . . . Alert | -11 -10 -10 ------- Run | Yrd Mat Sub Maximum Alert Level . | . . . Low Security (%) 100 | 100 100 . Level 1 . | . . . Level 2 . | . . . Level 3 . | . . . Level 4 . | . . . Level 5 . | . . . High Security . | . . . Max Security . | . . . Peak Influence 4 | . 4 . Initial . | . . . Average . | . . . Influence Increases 232 | . 7 225 Destroy 0b10 Robot/C 140 | . . 140 Destroy Leader 10 | . . 10 Successful Hack 7 | . 7 . Lose Combat Pursuer 75 | . . 75 Influence Decreases 232 | . 7 225 Time Decay 212 | . 7 205 Lost Part 20 | . . 20 Squads Dispatched . | . . . Investigation . | . . . Extermination . | . . . Reinforcement . | . . . Assault . | . . . Garrison . | . . . Intercept . | . . . Searches Triggered . | . . . Construction Impeded . | . . . Haulers Reinforced . | . . . Active Scanning Responses . | . . . Cargo Convoy Interrupts . | . . . Stealth | -11 -10 -10 --------- Run | Yrd Mat Sub Distress Signals . | . . . Communications Jammed . | . . . Distress Signals . | . . . Times Spotted 18 | . . 18 Peak Tracking Total 3 | . . 3 Tactical Retreats 4 | . . 4 Traps | -11 -10 -10 ------- Run | Yrd Mat Sub Traps Triggered 2 | . . 2 Indirectly . | . . . Trap Hack Attempts . | . . . Triggered . | . . . Disarmed . | . . . Reprogrammed . | . . . Reused . | . . . Traps Extracted . | . . . Installed . | . . . Triggered . | . . . Machines | -11 -10 -10 ---------- Run | Yrd Mat Sub Machines Disabled . | . . . Max in Single Turn . | . . . Machines Repaired . | . . . Machines Dismantled . | . . . Machines Sabotaged . | . . . Overloaded Fab Kills . | . . . Hacking | -11 -10 -10 --------- Run | Yrd Mat Sub Machines Accessed 5 | . 2 3 Terminals 1 | . 1 . Fabricators . | . . . Repair Stations . | . . . Recycling Units 1 | . 1 . Scanalyzers . | . . . Garrison Access . | . . . Total Hacks 7 | . 4 3 Successful 7 | . 4 3 Failed . | . . . Catastrophic . | . . . Database Lockouts . | . . . Manual 2 | . 2 . Terminals 1 | . 1 . Fabricators . | . . . Repair Stations . | . . . Recycling Units 3 | . 3 . Scanalyzers . | . . . Garrison Access . | . . . Terminal Hacks 4 | . 1 3 Record 1 | . . 1 Open Door 1 | . . 1 Zone Layout 1 | . 1 . Proto ID Catalog 1 | . . 1 Fabricator Hacks . | . . . Repair Station Hacks . | . . . Recycling Unit Hacks 1 | . 1 . Retrieve Components 1 | . 1 . Scanalyzer . | . . . Garrison Access Hacks . | . . . Unauthorized Hacks 2 | . 2 . Terminals . | . . . Fabricators . | . . . Repair Stations . | . . . Recycling Units 2 | . 2 . Reject 1 | . 1 . Mask 1 | . 1 . Scanalyzers . | . . . Garrison Access . | . . . Data Cores Recovered . | . . . Used . | . . . Hacking Detections 1 | . 1 . Full Trace Events . | . . . Feedback Events . | . . . Feedback Blocked . | . . . Robot Schematics Acquired . | . . . Robots Built . | . . . Authchips . | . . . Time . | . . . Total Robot Build Rating . | . . . Part Schematics Acquired . | . . . Parts Built . | . . . Authchips . | . . . Time . | . . . Total Part Build Rating . | . . . Part Studies Acquired . | . . . Parts Repaired . | . . . Time . | . . . Parts Recycled . | . . . Recycled Matter . | . . . Retrieved Matter . | . . . Retrieved Components 2 | . 2 . Parts Scanalyzed . | . . . Part Schematics Acquired . | . . . Parts Damaged . | . . . Bothacking | -11 -10 -10 ------------ Run | Yrd Mat Sub Used RIF Installer . | . . . Robots Hacked . | . . . Non-combat . | . . . Combat . | . . . Robot Hacks Applied . | . . . Relay Couplers Released . | . . . Fabnet Peak Effective % . | . . . Robots Rewired . | . . . Allies Hacked . | . . . Hacks Repelled . | . . . Allies | -11 -10 -10 -------- Run | Yrd Mat Sub Total Allies . | . . . Largest Group . | . . . Highest-Rated Group . | . . . Highest-Rated Ally . | . . . Total Orders . | . . . Ally Attacks . | . . . Total Damage . | . . . Kills . | . . . Allies Corrupted . | . . . Allies Melted . | . . . Intel | -11 -10 -10 ------- Run | Yrd Mat Sub Active Infowar (turns) 2421 | 2 233 2186 Sensors 335 | . . 335 Seismic 2086 | 2 233 1851 Robot Analysis Total . | . . . Derelict Logs Recovered 1 | . . 1 Drone Launches . | . . . Drone Recoveries . | . . . Exploration | -11 -10 -10 ------------- Run | Yrd Mat Sub Turns Passed 2452 | 2 233 2217 Spaces Moved 1242 | 1 87 1154 Core . | . . . Treads 1112 | . 22 1090 Legs 66 | 1 65 . Wheels 64 | . . 64 Hover . | . . . Flight . | . . . Fastest Speed 120 | 120 160 120 Average Speed 163 | 120 182 162 Slowest Speed 240 | 120 190 240 Overloaded Moves . | . . . Propulsion Burnouts . | . . . Robots Hopped . | . . . Potential Cave-ins . | . . . Cave-ins Triggered . | . . . Exploration Rate (%) 37 | 2 20 91 Regions Visited 2 Branch Regions 1 Pre-discovered Areas . | . . . Known Exits Taken 2 | 1 1 . Unknown Exits Taken . | . . . Scrap Searched . | . . . Spaces Dug . | . . . Terrain Destroyed 1 | . . 1 Melee . | . . . Projectile 1 | . . 1 AOE . | . . . Terrain Rammed . | . . . Walls Destroyed . | . . . Machines Disabled . | . . . Actions | -11 -10 -10 --------- Run | Yrd Mat Sub Total 1503 | 1 160 1342 Wait 84 | . 68 16 Move 1240 | . 86 1154 Hop . | . . . Pick Up 16 | . 3 13 Fast Attach 2 | . . 2 Attach 6 | . 1 5 Detach . | . . . Swap 12 | 1 2 9 Drop 14 | . . 14 Fire 124 | . . 124 Melee . | . . . Ram . | . . . Kick . | . . . Crush . | . . . Escape Stasis . | . . . Rewire 5 | . . 5 Trap . | . . . Miscellaneous . | . . . Route ------- -11/Scrapyard -10/Materials (discovered 2 exits: *Min / *Sub) -10/Subcaves (discovered 3 exits: *Mat x2 / *Rec) History --------- Turn | Location | Event 3 | -11/Scrapyard | Identified exit to Materials 3 | -11/Scrapyard | Discovered exit to Materials (range 0) 3 | -11/Scrapyard | Entered Materials 3 | -10/Materials | Evolved 1 slot: Utility x1 150 | -10/Materials | Identified exit to Mines 150 | -10/Materials | Discovered exit to Mines (range 15) 228 | -10/Materials | Identified exit to Subcaves 228 | -10/Materials | Discovered exit to Subcaves (range 5) 236 | -10/Materials | Entered Subcaves 305 | -10/Subcaves | Build established: Hacker-Mutant 473 | -10/Subcaves | Visited 4L-MR0's lab 587 | -10/Subcaves | Identified exit to Materials 587 | -10/Subcaves | Discovered exit to Materials (range 12) 597 | -10/Subcaves | Identified exit to Recycling 1146 | -10/Subcaves | A swath of the cavern ceiling suddenly collapsed 1862 | -10/Subcaves | Discovered exit to Materials (range 5) 2279 | -10/Subcaves | Ambushed by angry Subdweller bent on revenge 2397 | -10/Subcaves | A Subdweller sparked back to life 2397 | -10/Subcaves | A Subdweller sparked back to life 2397 | -10/Subcaves | A Subdweller sparked back to life 2404 | -10/Subcaves | Core integrity fell below 50% 2433 | -10/Subcaves | Core integrity fell below 20% 2448 | -10/Subcaves | Found Cargo Legs 2450 | -10/Subcaves | Attached Cargo Legs, gained temporary slots: Utility x2 2453 | -10/Subcaves | Destroyed by QK-40Q(R) with Subdweller Machine Gun Last Messages --------------- to move. 02397_ QK-40Q(R) creaks and sparks as it begins to move. 02397_ 8F-A1L(R) creaks and sparks as it begins to move. 02400_ 7B-JIW(R) affixes Scrap Shield Fragment to Scrap Shield. 02412_ 8F-A1L(R) suffers critical hit (Destroy). 02412_ Destroyed Sub. Power Source. 02429_ Lgt. Treads destroyed. 02430_ Heat Sink destroyed. 02431_ Sub. Laser melted. 02431_ 8F-A1L(R) destroyed. 02439_ 7B-JIW(R) destroyed. 02445_ Acquired 29 matter. 02447_ Dropped Broken Sub. Power Source. 02448_ Acquired Cargo Legs. 02449_ Dropped Sub. Monowheel. 02450_ Core temporarily expanded with Utility slot. Map ----- +----------------------------------------------------+ | ???????????????????????????#" """##" #???????????? | | ???????????????????????????# ### ##??????????? | | ???????????????????????????## ##?#"" ##?????????? | | ???????????????????????????## #?###" ##????????? | | ???????????????????????????# #?#""" "#????????? | | ???????????????????????????## "##"""""""#????????? | | ???????????????????????????# " "##""""""#????????? | | ???????????????????????????#"" """### ##????????? | | ???????????????????????????##"" """##?##?????????? | | ??????????????????????????## "" """"##???????????? | | ?????????????????????????## " " """ ##??????????? | | ?????????????????????????# "##"" "" #??????????? | | ?????????????????????????#" ##" #??????????? | | ?????????????????????????#"""""" ####??????????? | | ?????????????????????????# """ ##????????????? | | ?????????????????????????# """" #????????????? | | ?????????????????????????# """"" """#????????????? | | ?????????????????????????# """ """##????????????? | | ?????????????????????????## "" ##?????????????? | | ??????????????????????????#### ##??????????????? | | ??????????????????????????#### #######??????????? | | ?????????????????????????##"" % "" #??????????? | | ?????????????????????????# =&%""##?????????? | | ????????????????????????## ""#?????????? | | ????????????????????????#!* # ##?????????? | | ????????????????????????#@= ###### #?????????? | | ????????????????????????#! ###### ##?????????? | | ???????????????????????##%![#??## #??????????? | | ???????????????????????# * R###" #??????????? | | ???????????????????????# < " ##??????????? | | ???????????????????????## ? ##???????????? | | ???????????????????????# ##????????????? | | ???????????????????????# ###?????????????? | | ???????????????????????## < # #???????????????? | | ???????????????????????# < #???????????????? | | ???????????????????????###### # ##???????????????? | | ????????????????????????????#####????????????????? | | ?????????????????????????????????????????????????? | | ?????????????????????????????????????????????????? | | ?????????????????????????????????????????????????? | | ?????????????????????????????????????????????????? | | ?????????????????????????????????????????????????? | | ?????????????????????????????????????????????????? | | ?????????????????????????????????????????????????? | | ?????????????????????????????????????????????????? | | ?????????????????????????????????????????????????? | | ?????????????????????????????????????????????????? | | ?????????????????????????????????????????????????? | | ?????????????????????????????????????????????????? | | ?????????????????????????????????????????????????? | +----------------------------------------------------+ Best States ------------- Heat Dissipation 35 Energy Generation 15 Energy Capacity 265 Matter Stores 300 Matter Capacity 300 Sight Range 16 Robot Scan Range 14 Terrain Scan Density 10 Armor Coverage 150 Resistance: KI 35 Resistance: TH 35 Resistance: EX 35 Resistance: EM 35 Resistance: I 35 Resistance: S 35 Resistance: P 35 Evasion (%) 40 Recoil Reduction 2 Offensive Hacking 20 Item Schematics ----------------- None Robot Schematics ------------------ None Fabricated ------------ Nothing Repaired ---------- Nothing Studied --------- None Alien Tech Used ----------------- None Achievements -------------- None Challenges ------------ None Game ------ Seed AdvancedBlastDriveblaster Manual? 0 Play Time 00:12:12 Cumulative 86.1 hours Start 2025.12.31 @ 18:19:17 End 2025.12.31 @ 18:31:19 Sessions 1 Manual Loads 0 Difficulty Explorer Special Mode None Game No. 143 Rogue 118 Adventurer 20 Explorer 5 Win Type - Total 1 Types 0/0/0/1/0/0/0/0/0/0 Lore% 55 Gallery% 45 Achievement% 36 Wizard Run 0 Options --------- Layout 1 ASCII 0 Keyboard 0 Movement Numpad Keybinds 0 Fullscreen 2 Font 24/Smallcaps Map View 50x35 Zoom Use 0% Tactical HUD 1 Map Filters NONE Filters NONE Steam 1 RUN: 32430d87-dad4-48a6-9690-68f64019f43a